bitfinex/quotes_BTCUSD_20240811
["timestamp","ask_amount","ask_price","bid_price","bid_amount"]
[1723395073172,1.31570088,60292.0,60291.0,0.500503]
[1723395074269,1.38121098,60292.0,60291.0,0.500503]
[1723395074852,1.29941098,60292.0,60291.0,0.500503]
[1723395075386,0.60567996,60292.0,60291.0,0.643103]
[1723395076717,0.83788296,60292.0,60291.0,0.500503]
[1723395077152,0.90323001,60292.0,60291.0,0.500503]
[1723395077372,0.83788296,60292.0,60291.0,0.500503]
[1723395078407,0.83788296,60292.0,60291.0,0.578103]
[1723395081426,0.83788296,60292.0,60291.0,0.643103]
[1723395082898,0.60567996,60292.0,60291.0,0.643103]
[1723395084157,0.59567996,60292.0,60291.0,0.642103]
[1723395084366,0.01517296,60292.0,60291.0,0.642103]
[1723395084590,0.01517296,60292.0,60291.0,0.643103]
[1723395084591,0.02317296,60292.0,60291.0,0.643103]
[1723395084812,0.01817296,60292.0,60291.0,0.642103]
[1723395084955,0.01817296,60292.0,60291.0,0.77984347]
[1723395085382,0.01017296,60292.0,60291.0,0.77884347]
[1723395085623,0.01017296,60292.0,60291.0,0.89794647]
[1723395085807,0.01617296,60292.0,60291.0,1.13115347]
[1723395086010,0.01617296,60292.0,60291.0,1.12815347]
[1723395086213,0.00683,60292.0,60291.0,1.14115347]
[1723395087014,0.00683,60292.0,60291.0,1.14114469]
[1723395087713,0.00083,60292.0,60291.0,0.89493769]
[1723395087953,0.00083,60292.0,60291.0,0.91293769]
[1723395088178,0.01016482,60292.0,60291.0,1.13114469]
[1723395088424,0.01016482,60292.0,60291.0,1.12714469]
[1723395088678,0.01016482,60292.0,60291.0,1.14814469]
[1723395088679,0.01116482,60292.0,60291.0,1.14814469]
[1723395089349,0.00183,60292.0,60291.0,1.14814469]
[1723395090192,0.00183,60292.0,60291.0,1.38035169]
[1723395090709,0.00183,60292.0,60291.0,1.56716661]
[1723395090918,0.00183,60292.0,60291.0,1.80937361]
[1723395092154,0.00183,60292.0,60291.0,1.85902165]
[1723395092341,0.00183,60292.0,60291.0,1.80937361]
[1723395092491,0.00183,60292.0,60291.0,1.85900618]
[1723395092700,0.00183,60292.0,60291.0,1.80937361]
[1723395095253,0.00183,60292.0,60291.0,1.82937361]
[1723395095467,0.00183,60292.0,60291.0,1.97900618]
[1723395095663,0.00183,60292.0,60291.0,2.23605267]
[1723395096114,0.00183,60292.0,60291.0,2.30490431]
[1723395096319,0.00183,60292.0,60291.0,2.23605267]
[1723395097279,0.00183,60292.0,60291.0,2.23805267]
[1723395097482,0.00083,60299.0,60298.0,1.41691]
[1723395097595,0.00083,60299.0,60298.0,2.48211874]
[1723395097796,0.00083,60299.0,60298.0,2.35019904]
[1723395098040,0.000931,60309.0,60305.0,1.449141]
[1723395098258,0.00831,60313.0,60308.0,0.842493]
[1723395098466,0.00831,60313.0,60312.0,1.29705654]
[1723395098680,0.00831,60313.0,60312.0,2.02258339]
[1723395098913,0.00831,60313.0,60312.0,2.09678124]
[1723395099116,0.00831,60313.0,60312.0,2.12960367]
[1723395099310,0.00831,60313.0,60312.0,2.10486862]
[1723395099742,0.00831,60313.0,60312.0,1.74878835]
[1723395099892,0.00831,60313.0,60312.0,1.75878835]
[1723395100514,0.00931,60313.0,60312.0,1.90044624]
[1723395100755,0.00931,60313.0,60312.0,1.90044782]
[1723395100970,0.00831,60313.0,60312.0,1.90044782]
[1723395101181,0.00931,60313.0,60312.0,1.91344782]
[1723395101389,0.00931,60313.0,60312.0,1.89944782]
[1723395101601,0.00931,60313.0,60312.0,1.91344782]
[1723395101808,0.00831,60313.0,60312.0,1.88644782]
[1723395102019,0.00931,60313.0,60312.0,1.89644782]
[1723395102232,0.00931,60313.0,60312.0,1.91044782]
[1723395103262,0.00931,60313.0,60312.0,1.77278835]
[1723395103500,0.00931,60313.0,60312.0,1.91045114]
[1723395106990,0.00931,60313.0,60312.0,1.91045157]
[1723395110263,0.00931,60313.0,60312.0,2.17257757]
[1723395110477,0.00931,60313.0,60312.0,2.03491435]
[1723395110698,0.00931,60313.0,60312.0,2.79257072]
[1723395110920,0.00931,60313.0,60312.0,2.84116183]
[1723395111137,0.00931,60313.0,60312.0,2.22116183]
[1723395111563,0.00931,60313.0,60312.0,3.08328783]
[1723395111780,0.00931,60313.0,60312.0,3.12795191]
[1723395111995,0.00931,60313.0,60312.0,2.56877026]
[1723395112485,0.00931,60313.0,60312.0,2.29195955]
[1723395112691,0.00831,60313.0,60312.0,2.45149534]
[1723395112893,0.00831,60313.0,60312.0,2.46549566]
[1723395113067,0.00831,60313.0,60312.0,2.23336959]
[1723395113280,0.00687263,60314.0,60313.0,1.220649]
[1723395113492,0.00687263,60314.0,60313.0,2.21132769]
[1723395113723,0.00687263,60314.0,60313.0,2.14250998]
[1723395114144,0.00687263,60314.0,60313.0,2.34231458]
[1723395114342,0.00597614,60314.0,60313.0,2.34231458]
[1723395114571,0.00597614,60314.0,60313.0,2.35631458]
[1723395114778,0.00597614,60314.0,60313.0,2.37031458]
[1723395114977,0.00597614,60314.0,60313.0,2.43913283]
[1723395115733,0.00597614,60314.0,60313.0,2.4391287]
[1723395116356,0.00597614,60314.0,60313.0,1.60426645]
[1723395116753,0.00597614,60314.0,60313.0,1.83838845]
[1723395116958,0.00597614,60314.0,60313.0,1.83638845]
[1723395117206,0.00597614,60314.0,60313.0,1.56126645]
[1723395117437,0.00597614,60314.0,60313.0,1.31914445]
[1723395117593,0.00597614,60314.0,60313.0,1.55128737]
[1723395117791,0.00597614,60314.0,60313.0,1.65128737]
[1723395118207,0.00597614,60314.0,60313.0,2.11320937]
[1723395118410,0.00597614,60314.0,60313.0,2.09320937]
[1723395118610,0.00597614,60314.0,60313.0,1.66128737]
[1723395119131,0.00597614,60314.0,60313.0,1.70428737]
[1723395119284,0.00597614,60314.0,60313.0,1.68428737]
[1723395119496,0.00597614,60314.0,60313.0,1.93640937]
[1723395120070,0.00597614,60314.0,60313.0,1.70428737]
[1723395120497,0.00597614,60314.0,60313.0,1.69428737]
[1723395120701,0.00597614,60314.0,60313.0,1.68428737]
[1723395120926,0.00597614,60314.0,60313.0,1.68428524]
[1723395121357,0.00597614,60314.0,60313.0,1.79875192]
[1723395121614,0.00597614,60314.0,60313.0,1.93640438]
[1723395122022,0.00597614,60314.0,60313.0,1.67428238]
[1723395122443,0.00597614,60314.0,60313.0,1.90640438]
[1723395122661,0.00597614,60314.0,60313.0,1.68428238]
[1723395122848,0.00597614,60314.0,60313.0,1.90640438]
[1723395123016,0.00597614,60314.0,60313.0,1.91640438]
[1723395123231,0.00597614,60314.0,60313.0,1.93640438]
[1723395123441,0.00597614,60314.0,60313.0,2.00522908]
[1723395123781,0.00597614,60314.0,60313.0,1.91640438]
[1723395124000,0.00597614,60314.0,60313.0,1.93640438]
[1723395124225,0.00597614,60314.0,60313.0,2.00523012]
[1723395124859,0.00597614,60314.0,60313.0,2.00723012]
[1723395125285,0.00597614,60314.0,60313.0,2.17903012]
[1723395125507,0.00831,60323.0,60320.0,1.125532]
[1723395125722,0.00831,60323.0,60320.0,2.11004938]
[1723395125958,0.000831,60348.0,60347.0,0.347986]
[1723395126214,0.000831,60348.0,60347.0,1.427077]
[1723395126397,0.000831,60348.0,60347.0,1.72378878]
[1723395126637,0.0083,60353.0,60350.0,0.58995]
[1723395126847,0.0083,60353.0,60352.0,0.357958]
[1723395127077,0.0083,60353.0,60352.0,1.26811]
[1723395127293,0.0083,60353.0,60352.0,1.19669968]
[1723395127538,0.0083,60353.0,60352.0,1.1185426]
[1723395127866,0.0083,60353.0,60352.0,1.0374426]
[1723395128075,0.0083,60353.0,60352.0,0.9144426]
[1723395128295,0.0083,60353.0,60352.0,0.75062768]
[1723395128508,0.0083,60353.0,60352.0,1.1934146]
[1723395128751,0.0083,60353.0,60352.0,1.8584586]
[1723395128957,0.0083,60353.0,60352.0,1.9192586]
[1723395129158,0.0083,60353.0,60352.0,1.72792189]
[1723395129368,0.0083,60353.0,60352.0,1.6922866]
[1723395129572,0.0083,60353.0,60352.0,1.9262586]
[1723395129982,0.0083,60353.0,60352.0,1.6942866]
[1723395130396,0.0083,60353.0,60352.0,1.69228094]
[1723395130601,0.0083,60353.0,60352.0,1.66728094]
[1723395130820,0.0083,60353.0,60352.0,1.54972492]
[1723395131046,0.0083,60353.0,60352.0,1.68728862]
[1723395131246,0.0083,60353.0,60352.0,0.81245862]
[1723395131446,0.0083,60353.0,60352.0,0.49708]
[1723395131658,0.200684,60353.0,60352.0,0.49708]
[1723395131863,0.20917958,60353.0,60352.0,0.50908]
[1723395132073,0.44114758,60353.0,60352.0,0.50908]
[1723395132297,0.20917958,60353.0,60352.0,0.49708]
[1723395132517,0.44114758,60353.0,60352.0,0.49708]
[1723395132724,0.90508358,60353.0,60352.0,0.49708]
[1723395132952,0.73761558,60353.0,60352.0,0.51108]
[1723395133157,0.27367958,60353.0,60352.0,0.51108]
[1723395133362,0.15769558,60353.0,60352.0,0.49708]
[1723395133818,0.15869558,60353.0,60352.0,0.49708]
[1723395134018,0.15769558,60353.0,60352.0,0.49708]
[1723395134242,0.15969558,60353.0,60352.0,0.49808]
[1723395134867,0.09419558,60353.0,60352.0,0.49708]
[1723395135069,0.21017958,60353.0,60352.0,0.49808]
[1723395135290,0.09519558,60353.0,60352.0,0.49808]
[1723395135734,0.0867,60353.0,60352.0,0.49808]
[1723395136156,0.09519557,60353.0,60352.0,0.49808]
[1723395136371,0.09519557,60353.0,60352.0,0.614066]
[1723395136576,0.01879557,60353.0,60352.0,0.77788092]
[1723395136780,0.0103,60353.0,60352.0,0.77788092]
[1723395137596,0.0103,60353.0,60352.0,0.49808]
[1723395138022,0.01879558,60353.0,60352.0,0.49808]
[1723395139596,0.13377958,60353.0,60352.0,0.49808]
[1723395139804,0.71144758,60353.0,60352.0,0.49808]
[1723395140032,0.94241558,60353.0,60352.0,0.49708]
[1723395140186,0.95141558,60353.0,60352.0,0.49808]
[1723395140384,0.71944758,60353.0,60352.0,0.49808]
[1723395140610,0.71944758,60353.0,60352.0,0.50008]
[1723395140816,0.93741558,60353.0,60352.0,0.49708]
[1723395141013,0.94341558,60353.0,60352.0,0.49708]
[1723395141393,0.94341558,60353.0,60352.0,0.50008]
[1723395143977,1.3391985,60353.0,60352.0,0.50008]
[1723395144409,1.38823723,60353.0,60352.0,0.50008]
[1723395144764,1.48823723,60353.0,60352.0,0.50008]
[1723395144974,1.49823723,60353.0,60352.0,0.50008]
[1723395145175,1.49223723,60353.0,60352.0,0.50008]
[1723395145375,1.50023723,60353.0,60352.0,0.50108]
[1723395146192,1.75220523,60353.0,60352.0,0.50108]
[1723395146398,1.75220523,60353.0,60352.0,0.49808]
[1723395146616,1.75220523,60353.0,60320.0,0.313192]
[1723395146617,0.01,60346.0,60320.0,0.0811]
[1723395146836,1.90904923,60353.0,60321.0,0.49107874]
[1723395146837,0.116036,60326.0,60321.0,0.49107874]
[1723395147050,0.116033,60328.0,60320.0,0.232094]
[1723395147258,0.1998,60335.0,60317.0,0.0608]
[1723395147259,0.00850644,60325.0,60324.0,0.34812]
[1723395147470,0.192111,60339.0,60333.0,0.116022]
[1723395147714,0.0761,60339.0,60331.0,0.116025]
[1723395147963,0.00850631,60338.0,60335.0,0.116017]
[1723395148171,0.00850631,60338.0,60333.0,0.116021]
[1723395148384,0.116011,60339.0,60333.0,0.11933556]
[1723395148618,0.12451196,60338.0,60333.0,0.11933556]
[1723395148844,0.116017,60336.0,60333.0,0.00331456]
[1723395149074,0.116017,60336.0,60331.0,0.116025]
[1723395149287,0.00849898,60335.0,60332.0,0.00331464]
[1723395149459,0.00849898,60335.0,60331.0,0.11933965]
[1723395149667,0.00849898,60335.0,60323.0,0.0665]
[1723395149668,0.08459898,60335.0,60323.0,0.0665]
[1723395149867,0.08184646,60330.0,60319.0,0.1]
[1723395150069,0.116032,60328.0,60323.0,0.116041]
[1723395150269,0.00849902,60329.0,60323.0,0.232083]
[1723395150513,0.232035,60336.0,60329.0,0.196029]
[1723395150812,0.116022,60334.0,60329.0,0.08]
[1723395151059,0.116023,60333.0,60329.0,0.08]
[1723395151272,0.23204,60335.0,60326.0,0.116035]
[1723395151273,0.001,60330.0,60326.0,0.116035]
[1723395151467,0.19787346,60331.0,60326.0,0.27984992]
[1723395151790,0.116028,60330.0,60329.0,0.007]
[1723395151988,0.116028,60330.0,60324.0,0.116039]
[1723395152188,0.11603,60329.0,60324.0,0.116039]
[1723395152610,0.39000146,60331.0,60319.0,0.412096]
[1723395152817,0.116031,60329.0,60323.0,0.11604]
[1723395153447,0.116032,60328.0,60323.0,0.11604]
[1723395154172,0.116032,60328.0,60326.0,0.003]
[1723395154345,0.11603,60330.0,60326.0,0.003]
[1723395154547,0.001,60329.0,60323.0,0.014]
[1723395154750,0.117031,60329.0,60323.0,0.116041]
[1723395154951,0.117032,60328.0,60323.0,0.137041]
[1723395155151,0.118032,60328.0,60323.0,0.137041]
[1723395155351,0.08184646,60324.0,60323.0,0.116041]
[1723395155553,0.08184646,60324.0,60323.0,0.014]
[1723395155750,0.08184646,60324.0,60323.0,0.019]
[1723395156176,0.116033,60328.0,60323.0,0.019]
[1723395156888,0.116033,60328.0,60323.0,0.116041]
[1723395157254,0.001,60324.0,60323.0,0.141041]
[1723395157671,0.116034,60327.0,60323.0,0.014]
[1723395158197,0.00847679,60326.0,60323.0,0.021]
[1723395158355,0.00847679,60326.0,60323.0,0.12304]
[1723395158556,0.00847679,60326.0,60321.0,0.116044]
[1723395158899,0.19788646,60324.0,60323.0,0.022]
[1723395159013,0.08184646,60324.0,60323.0,0.022]
[1723395159215,0.09032328,60324.0,60323.0,0.022]
[1723395159676,0.20636328,60324.0,60323.0,0.022]
[1723395159848,0.20636328,60324.0,60323.0,0.008]
[1723395160052,0.20636328,60324.0,60320.0,0.116047]
[1723395160249,0.20636328,60324.0,60323.0,0.014]
[1723395160488,0.20636328,60324.0,60323.0,0.009]
[1723395160844,0.20736328,60324.0,60323.0,0.014]
[1723395161693,0.20636328,60324.0,60320.0,0.003]
[1723395161875,0.20636328,60324.0,60319.0,0.116048]
[1723395162146,0.01047682,60324.0,60323.0,0.02]
[1723395162372,0.01047682,60324.0,60323.0,0.136041]
[1723395162828,0.002,60324.0,60323.0,0.136041]
[1723395163286,0.001,60324.0,60323.0,0.006]
[1723395163658,0.01047691,60324.0,60323.0,0.006]
[1723395163860,0.116034,60327.0,60322.0,0.196043]
[1723395164061,0.00847693,60324.0,60323.0,0.116041]
[1723395164261,0.001,60324.0,60323.0,0.116041]
[1723395164420,0.0094768,60324.0,60323.0,0.116041]
[1723395164616,0.0084768,60324.0,60323.0,0.116041]
[1723395164820,0.0084768,60324.0,60323.0,0.130041]
[1723395164821,0.001,60324.0,60323.0,0.130041]
[1723395165037,0.00947697,60324.0,60323.0,0.130041]
[1723395165447,0.00947697,60324.0,60323.0,0.014]
[1723395165773,0.01047697,60324.0,60323.0,0.02]
[1723395166618,0.12651697,60324.0,60323.0,0.02]
[1723395166821,0.20836343,60324.0,60323.0,0.02]
[1723395166993,0.20836343,60324.0,60323.0,0.020913]
[1723395167670,0.09232343,60324.0,60323.0,0.020913]
[1723395168074,0.01047697,60324.0,60323.0,0.020913]
[1723395168254,0.01047697,60324.0,60323.0,0.20236907]
[1723395168450,0.002,60324.0,60323.0,0.20236907]
[1723395169429,0.002,60324.0,60323.0,0.199054]
[1723395169660,0.002,60324.0,60323.0,0.020913]
[1723395169809,0.09231164,60324.0,60323.0,0.020913]
[1723395170011,0.09231243,60324.0,60323.0,0.020913]
[1723395170212,0.44043243,60324.0,60323.0,0.020913]
[1723395170389,0.01046597,60324.0,60323.0,0.020913]
[1723395170779,0.01046597,60324.0,60323.0,0.15857447]
[1723395171180,0.002,60324.0,60323.0,0.15857447]
[1723395171379,0.11804,60324.0,60323.0,0.15857447]
[1723395171692,0.12650582,60324.0,60323.0,0.15857447]
[1723395172119,0.01046582,60324.0,60323.0,0.15857447]
[1723395172319,0.09231228,60324.0,60323.0,0.15857447]
[1723395173308,0.01046582,60324.0,60323.0,0.27461547]
[1723395173446,0.002,60324.0,60323.0,0.27793058]
[1723395173647,0.002,60324.0,60323.0,0.36123058]
[1723395173848,0.002,60324.0,60323.0,0.24518958]
[1723395174189,0.01046385,60324.0,60323.0,0.24187417]
[1723395174391,0.002,60324.0,60323.0,0.24187417]
[1723395174598,0.01046387,60324.0,60323.0,0.24187417]
[1723395174801,0.002,60324.0,60323.0,0.15857417]
[1723395174969,0.09231035,60324.0,60323.0,0.15857417]
[1723395176435,0.09231035,60324.0,60323.0,0.27461517]
[1723395176885,0.09231035,60324.0,60323.0,0.15857417]
[1723395177270,0.09231035,60324.0,60323.0,0.27461517]
[1723395177474,0.09231035,60324.0,60323.0,0.136954]
[1723395177656,0.09231035,60324.0,60323.0,0.27461528]
[1723395178115,0.09231035,60324.0,60323.0,0.27461452]
[1723395178735,0.09231035,60324.0,60323.0,0.15857352]
[1723395180307,0.67251035,60324.0,60323.0,0.15857352]
[1723395180524,0.72161434,60324.0,60323.0,0.15857352]
[1723395180948,0.72161525,60324.0,60323.0,0.15858141]
[1723395181354,0.95369525,60324.0,60323.0,0.15858141]
[1723395181558,0.95369525,60324.0,60323.0,0.020913]
[1723395181559,1.40011017,60324.0,60323.0,0.020913]
[1723395182595,1.39911017,60324.0,60323.0,0.006913]
[1723395182810,1.39811017,60324.0,60323.0,0.000913]
[1723395183107,1.39911017,60324.0,60323.0,0.012913]
[1723395183475,1.39911017,60324.0,60323.0,0.010913]
[1723395183851,2.96239017,60324.0,60323.0,0.010913]
[1723395184056,3.13906117,60324.0,60323.0,0.010913]
[1723395184266,3.18128695,60324.0,60323.0,0.010913]
[1723395184710,3.24335485,60324.0,60323.0,0.010913]
[1723395185160,3.18128695,60324.0,60323.0,0.010913]
[1723395185421,3.24369584,60324.0,60323.0,0.010913]
[1723395185612,3.25269584,60324.0,60323.0,0.000913]
[1723395185818,3.24269584,60324.0,60323.0,0.005913]
[1723395186026,3.25469584,60324.0,60323.0,0.006913]
[1723395186284,3.25469584,60324.0,60323.0,0.001913]
[1723395186492,3.25769584,60324.0,60323.0,0.001913]
[1723395186724,3.24569584,60324.0,60323.0,0.000913]
[1723395186956,3.25769584,60324.0,60323.0,0.001913]
[1723395187287,3.37323893,60324.0,60323.0,0.001913]
[1723395187716,3.37323895,60324.0,60323.0,0.001913]
[1723395187916,3.37323897,60324.0,60323.0,0.001913]
[1723395188117,4.46531897,60324.0,60323.0,0.001913]
[1723395188356,4.48531897,60324.0,60323.0,0.001913]
[1723395188530,4.5843274,60324.0,60323.0,0.001913]
[1723395188925,1.200231,60314.0,60313.0,0.000913]
[1723395189131,3.04873162,60314.0,60313.0,0.000913]
[1723395189358,3.01061547,60314.0,60313.0,0.000913]
[1723395189555,3.24273347,60314.0,60313.0,0.000913]
[1723395189956,3.30927762,60314.0,60313.0,0.001913]
[1723395190156,3.31427829,60314.0,60313.0,0.005913]
[1723395190706,3.31427829,60314.0,60313.0,0.000913]
[1723395190707,3.30927829,60314.0,60313.0,0.000913]
[1723395190913,3.31727829,60314.0,60313.0,0.001913]
[1723395192051,3.31727829,60314.0,60313.0,0.003913]
[1723395192263,3.25073347,60314.0,60313.0,0.003913]
[1723395192639,3.29733536,60314.0,60313.0,0.003913]
[1723395193036,3.23073347,60314.0,60313.0,0.003913]
[1723395193303,3.25073347,60314.0,60313.0,0.003913]
[1723395193480,3.22073347,60314.0,60313.0,0.003913]
[1723395193683,2.14718255,60314.0,60313.0,0.003913]
[1723395194121,0.64596455,60314.0,60313.0,0.065213]
[1723395194410,0.18172855,60314.0,60313.0,0.065213]
[1723395194659,0.36461915,60314.0,60313.0,0.065213]
[1723395194921,0.13250115,60314.0,60313.0,0.065213]
[1723395195150,0.59673715,60314.0,60313.0,0.065213]
[1723395195370,0.59673715,60314.0,60313.0,0.003913]
[1723395198239,0.82885515,60314.0,60313.0,0.003913]
[1723395198480,0.59673715,60314.0,60313.0,0.003913]
[1723395198914,0.36461915,60314.0,60313.0,0.003913]
[1723395199254,0.35661915,60314.0,60313.0,0.002913]
[1723395199459,0.35661915,60314.0,60313.0,0.000913]
[1723395199660,0.36261915,60314.0,60313.0,0.000913]
[1723395199889,0.36361915,60314.0,60313.0,0.011913]
[1723395200088,0.12550115,60314.0,60313.0,0.011913]
[1723395200291,0.20734761,60314.0,60313.0,0.011913]
[1723395200679,0.43946561,60314.0,60313.0,0.011913]
[1723395202076,0.67158361,60314.0,60313.0,0.011913]
[1723395202907,0.90370161,60314.0,60313.0,0.011913]
[1723395203795,0.95300285,60314.0,60313.0,0.011913]
[1723395205179,0.95291626,60314.0,60313.0,0.011913]
[1723395206041,1.15271626,60314.0,60313.0,0.011913]
[1723395208373,0.95291626,60314.0,60313.0,0.011913]
[1723395208573,0.95291626,60314.0,60313.0,0.152513]
[1723395208574,0.4068063,60314.0,60313.0,0.152513]
[1723395208798,0.6389243,60314.0,60313.0,0.152513]
[1723395208997,0.58973715,60314.0,60313.0,0.152513]
[1723395209196,0.63892253,60314.0,60313.0,0.152513]
[1723395209419,0.87104053,60314.0,60313.0,0.011913]
[1723395212178,0.82185515,60314.0,60313.0,0.011913]
[1723395212383,0.87096839,60314.0,60313.0,0.011913]
[1723395215905,0.87110634,60314.0,60313.0,0.011913]
[1723395216223,0.17475234,60314.0,60313.0,0.152513]
[1723395216415,0.05869334,60314.0,60313.0,0.152513]
[1723395216619,0.63898834,60314.0,60313.0,0.152513]
[1723395217361,0.40687034,60314.0,60313.0,0.152513]
[1723395217567,0.35761915,60314.0,60313.0,0.152513]
[1723395217766,0.17473455,60314.0,60313.0,0.152513]
[1723395217963,0.12550115,60314.0,60313.0,0.152513]
[1723395218685,0.00944215,60314.0,60313.0,0.152513]
[1723395219070,0.20734761,60314.0,60313.0,0.152513]
[1723395219305,0.43946561,60314.0,60313.0,0.152513]
[1723395219487,0.20734761,60314.0,60313.0,0.152513]
[1723395220645,0.43946561,60314.0,60313.0,0.152513]
[1723395222120,0.48858389,60314.0,60313.0,0.152513]
[1723395222309,0.43946561,60314.0,60313.0,0.29020308]
[1723395222498,0.43946561,60314.0,60313.0,0.152513]
[1723395223246,0.48855967,60314.0,60313.0,0.29020332]
[1723395223848,0.72067767,60314.0,60313.0,0.29020332]
[1723395224053,0.72067767,60314.0,60313.0,0.152513]
[1723395226019,0.72072523,60314.0,60313.0,0.152513]
[1723395228029,0.72072523,60314.0,60313.0,0.011913]
[1723395228233,0.95284323,60314.0,60313.0,0.011913]
[1723395228410,1.01394323,60314.0,60313.0,0.011913]
[1723395230101,0.96480161,60314.0,60313.0,0.011913]
[1723395230409,1.01396516,60314.0,60313.0,0.011913]
[1723395231388,1.12267854,60314.0,60313.0,0.011913]
[1723395231599,1.01396516,60314.0,60313.0,0.011913]
[1723395232207,0.95186516,60314.0,60313.0,0.000913]
[1723395232395,0.95386516,60314.0,60313.0,0.007913]
[1723395232934,0.95386516,60314.0,60313.0,0.000913]
[1723395232935,0.95186516,60314.0,60313.0,0.000913]
[1723395233139,0.95686516,60314.0,60313.0,0.004913]
[1723395233927,0.95686143,60314.0,60313.0,0.004913]
[1723395236649,1.02339311,60314.0,60313.0,0.004913]
[1723395236773,0.96679104,60314.0,60313.0,0.004913]
[1723395237589,1.03343889,60314.0,60313.0,0.004913]
[1723395238416,1.36272396,60314.0,60313.0,0.004913]
[1723395238614,1.70715182,60314.0,60313.0,0.004913]
[1723395238847,1.6574687,60314.0,60313.0,0.004913]
[1723395239032,4.10441138,60314.0,60313.0,0.004913]
[1723395239178,3.42925295,60314.0,60313.0,0.004913]
[1723395239387,3.3098867,60314.0,60313.0,0.004913]
[1723395239587,3.40925295,60314.0,60313.0,0.004913]
[1723395239977,3.43409451,60314.0,60313.0,0.004913]
[1723395240398,3.45409451,60314.0,60313.0,0.000913]
[1723395240575,3.43409451,60314.0,60313.0,0.000913]
[1723395240770,3.4336345,60314.0,60313.0,0.000913]
[1723395241036,4.2436345,60314.0,60313.0,0.000913]
[1723395241306,4.1144298,60314.0,60313.0,0.000913]
[1723395241456,4.23869321,60314.0,60313.0,0.000913]
[1723395241657,4.0644298,60314.0,60313.0,0.000913]
[1723395241861,3.33201519,60314.0,60313.0,0.000913]
[1723395242266,3.33201519,60314.0,60313.0,0.003913]
[1723395242469,4.08501519,60314.0,60313.0,0.003913]
[1723395242665,4.09901519,60314.0,60313.0,0.000913]
[1723395242867,4.10701519,60314.0,60313.0,0.001913]
[1723395243150,3.34701519,60314.0,60313.0,0.001913]
[1723395243487,3.87818241,60314.0,60313.0,0.001913]
[1723395243705,4.05714827,60314.0,60313.0,0.001913]
[1723395244535,4.05714861,60314.0,60313.0,0.001913]
[1723395246090,4.05714861,60314.0,60309.0,0.000913]
[1723395246091,1.447931,60310.0,60309.0,0.000913]
[1723395246291,2.86528774,60310.0,60309.0,0.000913]
[1723395246494,2.98828774,60310.0,60309.0,0.000913]
[1723395246715,2.86412423,60310.0,60309.0,0.000913]
[1723395246954,2.80118938,60310.0,60309.0,0.000913]
[1723395247160,4.1329175,60310.0,60309.0,0.000913]
[1723395247343,4.25702704,60310.0,60309.0,0.000913]
[1723395247563,4.30702704,60310.0,60309.0,0.000913]
[1723395248111,4.31902704,60310.0,60309.0,0.000913]
[1723395248947,4.22902704,60310.0,60309.0,0.000913]
[1723395249159,4.23202704,60310.0,60309.0,0.000913]
[1723395249362,4.46416004,60310.0,60309.0,0.000913]
[1723395249673,4.46416004,60310.0,60291.0,0.001013]
[1723395249674,1.044913,60292.0,60291.0,0.001013]
[1723395249791,1.25799769,60292.0,60291.0,0.001013]
[1723395249989,1.29939566,60292.0,60291.0,0.001013]
[1723395250197,1.38939566,60292.0,60291.0,0.001013]
[1723395251016,1.39056668,60292.0,60291.0,0.008013]
[1723395251635,1.39756668,60292.0,60291.0,0.008013]
[1723395252061,1.47306668,60292.0,60291.0,0.008013]
[1723395252260,1.47206668,60292.0,60291.0,0.001013]
[1723395252465,1.48106668,60292.0,60291.0,0.001013]
[1723395253106,2.75016668,60292.0,60291.0,0.001013]
[1723395253940,2.74216668,60292.0,60291.0,0.001013]
[1723395254100,2.75116668,60292.0,60291.0,0.001013]
[1723395254302,3.74336968,60292.0,60291.0,0.001013]
[1723395254498,3.01338467,60292.0,60291.0,0.001013]
[1723395254815,3.84352803,60292.0,60291.0,0.001013]
[1723395255014,3.85552803,60292.0,60291.0,0.001013]
[1723395255477,3.84552803,60292.0,60291.0,0.001013]
[1723395255676,3.85752803,60292.0,60291.0,0.001013]
[1723395256094,3.92642803,60292.0,60291.0,0.002013]
[1723395256957,3.21642803,60292.0,60291.0,0.002013]
[1723395257480,3.22631995,60292.0,60291.0,0.002013]
[1723395257633,3.16288717,60292.0,60291.0,0.002013]
[1723395258242,4.08625145,60292.0,60291.0,0.002013]
[1723395259312,4.08664002,60292.0,60291.0,0.002013]
[1723395259913,4.31884302,60292.0,60291.0,0.002013]
[1723395260129,1.307138,60291.0,60274.0,0.1409]
[1723395260377,2.09693442,60291.0,60274.0,0.1409]
[1723395260644,2.92693442,60291.0,60274.0,0.1409]
[1723395261213,2.92479227,60291.0,60274.0,0.1409]
[1723395261602,2.74701521,60291.0,60274.0,0.1409]
[1723395261802,2.92414146,60291.0,60274.0,0.1409]
[1723395262061,2.93814146,60291.0,60274.0,0.1409]
[1723395262636,2.95114146,60291.0,60274.0,0.1409]
[1723395262968,2.8880399,60291.0,60274.0,0.1409]
[1723395263350,2.95126214,60291.0,60274.0,0.1409]
[1723395264392,1.012738,60275.0,60274.0,0.1409]
[1723395264572,1.22489306,60275.0,60274.0,0.1409]
[1723395264775,1.2332466,60275.0,60274.0,0.1409]
[1723395265535,2.1955146,60275.0,60274.0,0.1409]
[1723395265686,1.5715146,60275.0,60274.0,0.1429]
[1723395265888,2.4115146,60275.0,60274.0,0.002]
[1723395266094,2.4345146,60275.0,60274.0,0.002]
[1723395266296,2.6767826,60275.0,60274.0,0.002]
[1723395267096,2.6850826,60275.0,60274.0,0.002]
[1723395267948,1.9100826,60275.0,60274.0,0.002]
[1723395268144,1.9300826,60275.0,60274.0,0.002]
[1723395268349,1.93794688,60275.0,60274.0,0.002]
[1723395268941,1.287518,60273.0,60272.0,0.000913]
[1723395269229,2.36788021,60273.0,60272.0,0.000913]
[1723395269432,1.6906297,60273.0,60272.0,0.000913]
[1723395269629,1.75425516,60273.0,60272.0,0.000913]
[1723395269962,1.77425516,60273.0,60272.0,0.000913]
[1723395270407,1.77425516,60273.0,60272.0,0.001913]
[1723395270536,2.53425516,60273.0,60272.0,0.001913]
[1723395270895,2.53425516,60273.0,60265.0,0.00913]
[1723395270896,0.03,60269.0,60265.0,0.00913]
[1723395271027,1.32525092,60269.0,60265.0,0.00913]